[Event "Early-Titled-Tuesday-Blitz-October-10-2023"]
[Site "Chess.com"]
[Date "2023.10.10"]
[Round "2"]
[White "Smiechu"]
[Black "Evandro_Barbosa"]
[Result "1/2-1/2"]
[WhiteElo "2482"]
[BlackElo "2706"]
[TimeControl "180+1"]
[EndTime "8:18:55 PDT"]
[Termination "Game drawn - insufficient material"]

1. e4 {[%clk 0:03:00.9]} 1... c5 {[%clk 0:03:00.1]} 2. Nf3 {[%clk 0:03:01]} 2...
e6 {[%clk 0:03:00.6]} 3. d4 {[%clk 0:03:01.2]} 3... cxd4 {[%clk 0:03:01]} 4.
Nxd4 {[%clk 0:03:01.8]} 4... Nc6 {[%clk 0:03:01.3]} 5. Nc3 {[%clk 0:03:01.1]}
5... d6 {[%clk 0:03:01.8]} 6. Be3 {[%clk 0:03:00.9]} 6... Nf6 {[%clk 0:03:01.3]}
7. Bd3 {[%clk 0:03:00.9]} 7... Be7 {[%clk 0:03:00.5]} 8. O-O {[%clk 0:03:00.9]}
8... O-O {[%clk 0:03:00.7]} 9. f4 {[%clk 0:02:58.8]} 9... Bd7 {[%clk 0:03:00.9]}
10. Qf3 {[%clk 0:02:56.9]} 10... a6 {[%clk 0:03:00.6]} 11. Rae1 {[%clk
0:02:56.4]} 11... Qc7 {[%clk 0:02:59.6]} 12. Nxc6 {[%clk 0:02:31.1]} 12... Bxc6
{[%clk 0:02:59.1]} 13. Qh3 {[%clk 0:02:30.5]} 13... g6 {[%clk 0:02:57]} 14. f5
{[%clk 0:02:25.6]} 14... gxf5 {[%clk 0:02:33.1]} 15. Bh6 {[%clk 0:02:15.9]}
15... Kh8 {[%clk 0:02:31.7]} 16. exf5 {[%clk 0:01:49]} 16... e5 {[%clk
0:02:30.3]} 17. Bxf8 {[%clk 0:01:46.4]} 17... Rxf8 {[%clk 0:02:30.2]} 18. Ne4
{[%clk 0:01:40.8]} 18... Bxe4 {[%clk 0:02:20.8]} 19. Bxe4 {[%clk 0:01:40.6]}
19... d5 {[%clk 0:02:21]} 20. Bxd5 {[%clk 0:01:11.2]} 20... Qc5+ {[%clk
0:02:15.4]} 21. Kh1 {[%clk 0:01:06.3]} 21... Qxd5 {[%clk 0:02:15]} 22. Rd1
{[%clk 0:01:00.7]} 22... Qc6 {[%clk 0:02:14.9]} 23. Rfe1 {[%clk 0:00:58.6]}
23... e4 {[%clk 0:02:07.1]} 24. Qg3 {[%clk 0:00:50.1]} 24... Rg8 {[%clk
0:01:58.9]} 25. Qe5 {[%clk 0:00:49.3]} 25... Qxc2 {[%clk 0:01:56.9]} 26. g3
{[%clk 0:00:34]} 26... Qc5 {[%clk 0:01:43.5]} 27. Rxe4 {[%clk 0:00:27.5]} 27...
Qc6 {[%clk 0:01:33.7]} 28. Re1 {[%clk 0:00:24.5]} 28... Bc5 {[%clk 0:01:26.6]}
29. b4 {[%clk 0:00:20.9]} 29... Bb6 {[%clk 0:01:09.1]} 30. a4 {[%clk 0:00:20.2]}
30... Re8 {[%clk 0:01:06.2]} 31. b5 {[%clk 0:00:15.9]} 31... axb5 {[%clk
0:01:03.3]} 32. axb5 {[%clk 0:00:15.7]} 32... Rxe5 {[%clk 0:00:58.5]} 33. bxc6
{[%clk 0:00:14.9]} 33... Rxe4 {[%clk 0:00:57.1]} 34. Rb1 {[%clk 0:00:14.4]}
34... bxc6 {[%clk 0:00:53.3]} 35. Rxb6 {[%clk 0:00:14.5]} 35... Rc4 {[%clk
0:00:52.8]} 36. Kg2 {[%clk 0:00:15.1]} 36... Kg7 {[%clk 0:00:53]} 37. Kf3 {[%clk
0:00:15.5]} 37... Nd5 {[%clk 0:00:52.8]} 38. Rb7 {[%clk 0:00:15.3]} 38... h5
{[%clk 0:00:51.4]} 39. h3 {[%clk 0:00:15.6]} 39... Nf6 {[%clk 0:00:43.5]} 40.
Rc7 {[%clk 0:00:15.3]} 40... c5 {[%clk 0:00:43.6]} 41. Rc6 {[%clk 0:00:12.7]}
41... Rc3+ {[%clk 0:00:43]} 42. Kf4 {[%clk 0:00:12.4]} 42... c4 {[%clk
0:00:40.7]} 43. g4 {[%clk 0:00:11.6]} 43... hxg4 {[%clk 0:00:39.9]} 44. hxg4
{[%clk 0:00:12.5]} 44... Nd5+ {[%clk 0:00:38.5]} 45. Kg5 {[%clk 0:00:12.4]}
45... f6+ {[%clk 0:00:35.5]} 46. Kh4 {[%clk 0:00:12.5]} 46... Rc1 {[%clk
0:00:28.3]} 47. Rc5 {[%clk 0:00:10.8]} 47... Ne3 {[%clk 0:00:23.8]} 48. Rc7+
{[%clk 0:00:10.8]} 48... Kf8 {[%clk 0:00:23.5]} 49. Kh5 {[%clk 0:00:11.2]} 49...
c3 {[%clk 0:00:20.5]} 50. g5 {[%clk 0:00:08.2]} 50... fxg5 {[%clk 0:00:18.9]}
51. Kg6 {[%clk 0:00:08.4]} 51... Nd5 {[%clk 0:00:14.4]} 52. Rc5 {[%clk
0:00:07.5]} 52... Rd1 {[%clk 0:00:13.2]} 53. f6 {[%clk 0:00:06]} 53... Nxf6
{[%clk 0:00:08.6]} 54. Kxf6 {[%clk 0:00:06.3]} 54... Rf1+ {[%clk 0:00:02.9]} 55.
Kxg5 {[%clk 0:00:06.3]} 55... Rf3 {[%clk 0:00:03]} 56. Kg4 {[%clk 0:00:06.6]}
56... Rd3 {[%clk 0:00:01.8]} 57. Kf4 {[%clk 0:00:07]} 57... Ke7 {[%clk
0:00:01.9]} 58. Ke4 {[%clk 0:00:07.3]} 58... Rh3 {[%clk 0:00:01.3]} 59. Kd4
{[%clk 0:00:07.8]} 59... Kd6 {[%clk 0:00:01.9]} 60. Rxc3 {[%clk 0:00:07.8]}
60... Rh4+ {[%clk 0:00:02.6]} 61. Kd3 {[%clk 0:00:08.1]} 61... Kd5 {[%clk
0:00:03.4]} 62. Kd2 {[%clk 0:00:07.2]} 62... Rh2+ {[%clk 0:00:03.9]} 63. Kd3
{[%clk 0:00:07.2]} 63... Rh3+ {[%clk 0:00:03.5]} 64. Kd2 {[%clk 0:00:07.6]}
64... Rxc3 {[%clk 0:00:02.1]} 65. Kxc3 {[%clk 0:00:07.8]} 1/2-1/2

[Event "Early-Titled-Tuesday-Blitz-October-10-2023"]
[Site "Chess.com"]
[Date "2023.10.10"]
[Round "2"]
[White "Mr_Lion22"]
[Black "DeTimmerman"]
[Result "0-1"]
[WhiteElo "2517"]
[BlackElo "2722"]
[TimeControl "180+1"]
[EndTime "8:18:56 PDT"]
[Termination "DeTimmerman won on time"]

1. d4 {[%clk 0:03:00.9]} 1... Nf6 {[%clk 0:02:59.7]} 2. c4 {[%clk 0:03:01.3]}
2... e6 {[%clk 0:03:00]} 3. Nc3 {[%clk 0:03:01.6]} 3... Bb4 {[%clk 0:03:00.5]}
4. e3 {[%clk 0:03:00.8]} 4... Ne4 {[%clk 0:03:00.9]} 5. Qc2 {[%clk 0:02:56.3]}
5... f5 {[%clk 0:03:01.1]} 6. Bd3 {[%clk 0:02:54.5]} 6... O-O {[%clk 0:03:01.2]}
7. Bxe4 {[%clk 0:02:47.7]} 7... fxe4 {[%clk 0:03:02.1]} 8. Qxe4 {[%clk
0:02:48.1]} 8... d5 {[%clk 0:03:02.6]} 9. Qd3 {[%clk 0:02:40.8]} 9... b6 {[%clk
0:03:02.3]} 10. Nf3 {[%clk 0:02:39.6]} 10... Ba6 {[%clk 0:03:02.1]} 11. Ne5
{[%clk 0:02:34.1]} 11... Nd7 {[%clk 0:02:54.8]} 12. Nc6 {[%clk 0:02:26.5]} 12...
Bxc3+ {[%clk 0:02:54.7]} 13. Qxc3 {[%clk 0:02:26.9]} 13... Qf6 {[%clk
0:02:55.6]} 14. f4 {[%clk 0:02:17.5]} 14... Bxc4 {[%clk 0:02:51.2]} 15. b3
{[%clk 0:02:17.8]} 15... Bb5 {[%clk 0:02:48.1]} 16. Ba3 {[%clk 0:02:16]} 16...
Rf7 {[%clk 0:02:43.2]} 17. O-O-O {[%clk 0:02:15.2]} 17... a5 {[%clk 0:02:12.4]}
18. g4 {[%clk 0:02:00.8]} 18... Re8 {[%clk 0:01:32.6]} 19. h4 {[%clk 0:01:48.3]}
19... Qg6 {[%clk 0:01:32.2]} 20. Rdg1 {[%clk 0:01:39.7]} 20... Qe4 {[%clk
0:01:32]} 21. Rh3 {[%clk 0:01:31.5]} 21... Qd3 {[%clk 0:01:18.4]} 22. Qxd3
{[%clk 0:01:30]} 22... Bxd3 {[%clk 0:01:19.3]} 23. Kd2 {[%clk 0:01:27.3]} 23...
Bb5 {[%clk 0:01:19.6]} 24. Rc1 {[%clk 0:01:27]} 24... Bxc6 {[%clk 0:01:19.9]}
25. Rxc6 {[%clk 0:01:26.4]} 25... Nb8 {[%clk 0:01:20.8]} 26. Rc2 {[%clk
0:01:24.6]} 26... Rd7 {[%clk 0:01:21.7]} 27. Kd3 {[%clk 0:01:23.8]} 27... c6
{[%clk 0:01:21.9]} 28. Rh1 {[%clk 0:01:23.4]} 28... g6 {[%clk 0:01:21.6]} 29.
Rhc1 {[%clk 0:01:23.2]} 29... h5 {[%clk 0:01:21.8]} 30. gxh5 {[%clk 0:01:18.9]}
30... gxh5 {[%clk 0:01:22.7]} 31. Rg2+ {[%clk 0:01:17.8]} 31... Rg7 {[%clk
0:01:23.1]} 32. Rcg1 {[%clk 0:01:15.4]} 32... Rxg2 {[%clk 0:01:22.5]} 33. Rxg2+
{[%clk 0:01:16.3]} 33... Kf7 {[%clk 0:01:22.4]} 34. Bd6 {[%clk 0:01:15.7]} 34...
Nd7 {[%clk 0:01:22.1]} 35. Rg5 {[%clk 0:01:12.9]} 35... Rh8 {[%clk 0:01:15.1]}
36. Be5 {[%clk 0:00:58.1]} 36... Rh7 {[%clk 0:01:15.2]} 37. e4 {[%clk
0:00:45.8]} 37... Nxe5+ {[%clk 0:01:04.9]} 38. fxe5 {[%clk 0:00:34.6]} 38... Rh8
{[%clk 0:00:56.6]} 39. exd5 {[%clk 0:00:31.6]} 39... cxd5 {[%clk 0:00:57.5]} 40.
Rg2 {[%clk 0:00:31.2]} 40... Rc8 {[%clk 0:00:57.3]} 41. Rf2+ {[%clk 0:00:30.6]}
41... Ke7 {[%clk 0:00:57.1]} 42. Rg2 {[%clk 0:00:27.4]} 42... Rc1 {[%clk
0:00:57.4]} 43. Rg7+ {[%clk 0:00:26.7]} 43... Ke8 {[%clk 0:00:56.9]} 44. Rb7
{[%clk 0:00:26.9]} 44... Rh1 {[%clk 0:00:54.6]} 45. Rxb6 {[%clk 0:00:27.3]}
45... Kd7 {[%clk 0:00:55.1]} 46. Rb7+ {[%clk 0:00:24]} 46... Kd8 {[%clk
0:00:54.6]} 47. Ra7 {[%clk 0:00:23.7]} 47... Rh3+ {[%clk 0:00:52.7]} 48. Kc2
{[%clk 0:00:21]} 48... Rxh4 {[%clk 0:00:53.2]} 49. Rxa5 {[%clk 0:00:19.1]} 49...
Rxd4 {[%clk 0:00:53.5]} 50. Ra6 {[%clk 0:00:19.3]} 50... Kd7 {[%clk 0:00:53]}
51. Rd6+ {[%clk 0:00:19]} 51... Ke7 {[%clk 0:00:53.3]} 52. a4 {[%clk 0:00:19.5]}
52... Re4 {[%clk 0:00:53.3]} 53. a5 {[%clk 0:00:19.9]} 53... Rxe5 {[%clk
0:00:53.8]} 54. Rb6 {[%clk 0:00:14.5]} 54... Re2+ {[%clk 0:00:54.7]} 55. Kd3
{[%clk 0:00:12.2]} 55... Ra2 {[%clk 0:00:54.6]} 56. b4 {[%clk 0:00:12.4]} 56...
h4 {[%clk 0:00:54.8]} 57. Rb8 {[%clk 0:00:10.8]} 57... h3 {[%clk 0:00:54.6]} 58.
Rh8 {[%clk 0:00:11.2]} 58... h2 {[%clk 0:00:54.6]} 59. Kd4 {[%clk 0:00:11.6]}
59... Kd6 {[%clk 0:00:55]} 60. Rd8+ {[%clk 0:00:10.9]} 60... Kc6 {[%clk
0:00:55.1]} 61. Rh8 {[%clk 0:00:11.1]} 61... Rb2 {[%clk 0:00:52.1]} 62. Ke5
{[%clk 0:00:08.5]} 62... Rxb4 {[%clk 0:00:50.2]} 63. Kxe6 {[%clk 0:00:08.7]}
63... Re4+ {[%clk 0:00:51.1]} 64. Kf5 {[%clk 0:00:08]} 64... Re2 {[%clk
0:00:52]} 65. Kf4 {[%clk 0:00:07.3]} 65... Kb5 {[%clk 0:00:52.1]} 66. Kg3 {[%clk
0:00:05.6]} 66... Kxa5 {[%clk 0:00:51.8]} 67. Rh5 {[%clk 0:00:04.1]} 67... Rd2
{[%clk 0:00:51.3]} 68. Kf3 {[%clk 0:00:03.8]} 68... Kb4 {[%clk 0:00:51.6]} 69.
Ke3 {[%clk 0:00:04.4]} 69... Kc3 {[%clk 0:00:50.8]} 70. Rh7 {[%clk 0:00:03.4]}
70... d4+ {[%clk 0:00:50.8]} 71. Ke4 {[%clk 0:00:03.4]} 71... Re2+ {[%clk
0:00:50.8]} 72. Kf3 {[%clk 0:00:03.6]} 72... d3 {[%clk 0:00:50.8]} 73. Rc7+
{[%clk 0:00:02.7]} 73... Kd2 {[%clk 0:00:50.9]} 74. Rh7 {[%clk 0:00:03.6]} 74...
Kd1 {[%clk 0:00:49.4]} 75. Rh6 {[%clk 0:00:02.6]} 75... Ke1 {[%clk 0:00:46.3]}
76. Rh5 {[%clk 0:00:02.1]} 76... d2 {[%clk 0:00:46.2]} 0-1

[Event "Early-Titled-Tuesday-Blitz-October-10-2023"]
[Site "Chess.com"]
[Date "2023.10.10"]
[Round "2"]
[White "Elprofessor21"]
[Black "FoxOnTheRun97"]
[Result "1-0"]
[WhiteElo "2780"]
[BlackElo "2549"]
[TimeControl "180+1"]
[EndTime "8:18:57 PDT"]
[Termination "Elprofessor21 won by resignation"]

1. Nc3 {[%clk 0:03:00.9]} 1... c6 {[%clk 0:02:58.9]} 2. e4 {[%clk 0:02:59.1]}
2... d5 {[%clk 0:02:59.1]} 3. d3 {[%clk 0:02:59.8]} 3... Nf6 {[%clk 0:02:55.6]}
4. e5 {[%clk 0:02:56]} 4... Nfd7 {[%clk 0:02:55.5]} 5. d4 {[%clk 0:02:56.4]}
5... e6 {[%clk 0:02:49.7]} 6. f4 {[%clk 0:02:56.7]} 6... c5 {[%clk 0:02:49.9]}
7. Nf3 {[%clk 0:02:57.3]} 7... Nc6 {[%clk 0:02:48.7]} 8. Be3 {[%clk 0:02:57.7]}
8... cxd4 {[%clk 0:02:48.8]} 9. Nxd4 {[%clk 0:02:57.3]} 9... Nxd4 {[%clk
0:02:45.2]} 10. Bxd4 {[%clk 0:02:57]} 10... a6 {[%clk 0:02:45.5]} 11. Qd2 {[%clk
0:02:55.3]} 11... Bc5 {[%clk 0:02:44.9]} 12. O-O-O {[%clk 0:02:55.8]} 12... Bxd4
{[%clk 0:02:44.1]} 13. Qxd4 {[%clk 0:02:56.7]} 13... Qb6 {[%clk 0:02:44.3]} 14.
Qd2 {[%clk 0:02:44]} 14... h5 {[%clk 0:02:40.5]} 15. Bd3 {[%clk 0:02:24.2]}
15... g6 {[%clk 0:02:27.7]} 16. Kb1 {[%clk 0:01:56.4]} 16... Nc5 {[%clk
0:02:24.8]} 17. Rhe1 {[%clk 0:01:51.1]} 17... Bd7 {[%clk 0:02:22.1]} 18. Bf1
{[%clk 0:01:41.1]} 18... Bb5 {[%clk 0:02:16.6]} 19. Nxb5 {[%clk 0:01:32.4]}
19... axb5 {[%clk 0:02:16.9]} 20. Qb4 {[%clk 0:01:32.7]} 20... O-O {[%clk
0:01:55.7]} 21. Qxb5 {[%clk 0:01:29.7]} 21... Qc7 {[%clk 0:01:55.7]} 22. f5
{[%clk 0:01:24.1]} 22... Ra5 {[%clk 0:01:42.7]} 23. Qb4 {[%clk 0:01:17.1]} 23...
exf5 {[%clk 0:01:23.7]} 24. Rxd5 {[%clk 0:01:12.7]} 24... Rfa8 {[%clk
0:01:23.2]} 25. a3 {[%clk 0:01:05]} 25... Ne4 {[%clk 0:01:18.3]} 26. Red1 {[%clk
0:00:50]} 26... Ra4 {[%clk 0:01:13]} 27. Qb3 {[%clk 0:00:37.7]} 27... Nc5 {[%clk
0:00:52.8]} 28. Qc3 {[%clk 0:00:37.5]} 28... b6 {[%clk 0:00:50.1]} 29. e6 {[%clk
0:00:26.5]} 29... Nxe6 {[%clk 0:00:48.1]} 30. Qf6 {[%clk 0:00:22.3]} 30... Rc8
{[%clk 0:00:36.4]} 31. Bd3 {[%clk 0:00:16.4]} 31... Ra5 {[%clk 0:00:31.1]} 32.
Rxa5 {[%clk 0:00:14.1]} 32... bxa5 {[%clk 0:00:32]} 33. g3 {[%clk 0:00:13.2]}
33... Nc5 {[%clk 0:00:29.8]} 34. Bc4 {[%clk 0:00:13.1]} 34... Ne6 {[%clk
0:00:13.4]} 35. Bxe6 {[%clk 0:00:12.8]} 35... Qxc2+ {[%clk 0:00:13.6]} 36. Ka2
{[%clk 0:00:13.4]} 36... fxe6 {[%clk 0:00:12.3]} 37. Qxe6+ {[%clk 0:00:13.4]}
37... Kh8 {[%clk 0:00:06.9]} 38. Qf6+ {[%clk 0:00:13.5]} 38... Kg8 {[%clk
0:00:07.5]} 39. Qxg6+ {[%clk 0:00:13.9]} 39... Kf8 {[%clk 0:00:08.1]} 40. Qh6+
{[%clk 0:00:13]} 40... Kg8 {[%clk 0:00:08]} 41. Qg5+ {[%clk 0:00:13.5]} 41...
Kf8 {[%clk 0:00:08]} 42. Qf6+ {[%clk 0:00:14]} 42... Kg8 {[%clk 0:00:08.3]} 43.
Qe6+ {[%clk 0:00:14.5]} 43... Kf8 {[%clk 0:00:08.5]} 44. Rd7 {[%clk 0:00:14.5]}
44... Qc4+ {[%clk 0:00:07.6]} 45. Qxc4 {[%clk 0:00:14.7]} 45... Rxc4 {[%clk
0:00:08.5]} 46. Rh7 {[%clk 0:00:15.2]} 46... Rc2 {[%clk 0:00:06]} 47. Rxh5
{[%clk 0:00:15.5]} 47... Rf2 {[%clk 0:00:06.3]} 48. h3 {[%clk 0:00:15.5]} 48...
a4 {[%clk 0:00:06]} 49. g4 {[%clk 0:00:15.5]} 49... fxg4 {[%clk 0:00:06.6]} 50.
hxg4 {[%clk 0:00:14.8]} 50... Rg2 {[%clk 0:00:07.1]} 51. Rh4 {[%clk 0:00:14.1]}
51... Ke7 {[%clk 0:00:06.9]} 52. g5 {[%clk 0:00:14.6]} 52... Rxg5 {[%clk
0:00:06.5]} 53. Rxa4 {[%clk 0:00:15.2]} 53... Kd6 {[%clk 0:00:07.1]} 54. Rc4
{[%clk 0:00:15.5]} 54... Kd5 {[%clk 0:00:06.6]} 55. Rc8 {[%clk 0:00:16.1]} 55...
Kd6 {[%clk 0:00:06.7]} 56. b4 {[%clk 0:00:16.1]} 56... Rg3 {[%clk 0:00:06.1]}
57. Kb2 {[%clk 0:00:16.6]} 57... Kd7 {[%clk 0:00:06.5]} 58. Rc3 {[%clk
0:00:17.2]} 58... Rg1 {[%clk 0:00:05.8]} 59. Kb3 {[%clk 0:00:18.1]} 59... Kd6
{[%clk 0:00:05]} 60. Ka4 {[%clk 0:00:17.9]} 60... Rb1 {[%clk 0:00:03.8]} 61. Ka5
{[%clk 0:00:17.9]} 61... Kd5 {[%clk 0:00:03.8]} 62. b5 {[%clk 0:00:18]} 62...
Ra1 {[%clk 0:00:03.3]} 63. a4 {[%clk 0:00:17.9]} 63... Ra2 {[%clk 0:00:02.5]}
64. b6 {[%clk 0:00:17.1]} 64... Kd6 {[%clk 0:00:02.2]} 65. b7 {[%clk 0:00:16.6]}
65... Rb2 {[%clk 0:00:02.5]} 66. Ka6 {[%clk 0:00:17.1]} 66... Rb4 {[%clk
0:00:01.7]} 67. a5 {[%clk 0:00:17.1]} 67... Kd7 {[%clk 0:00:01.7]} 68. Ka7
{[%clk 0:00:17.3]} 68... Rb5 {[%clk 0:00:01.9]} 69. a6 {[%clk 0:00:17.6]} 1-0

[Event "Early-Titled-Tuesday-Blitz-October-10-2023"]
[Site "Chess.com"]
[Date "2023.10.10"]
[Round "2"]
[White "secretsuperstar7"]
[Black "Blackwhite017"]
[Result "0-1"]
[WhiteElo "2410"]
[BlackElo "2023"]
[TimeControl "180+1"]
[EndTime "8:18:58 PDT"]
[Termination "Blackwhite017 won on time"]

1. c4 {[%clk 0:03:00.9]} 1... c6 {[%clk 0:02:53]} 2. Nc3 {[%clk 0:02:59.6]} 2...
d5 {[%clk 0:02:50.4]} 3. e3 {[%clk 0:02:58.8]} 3... Nf6 {[%clk 0:02:50]} 4. Nf3
{[%clk 0:02:58.9]} 4... g6 {[%clk 0:02:48.9]} 5. b3 {[%clk 0:02:58.1]} 5... Bg7
{[%clk 0:02:49]} 6. Bb2 {[%clk 0:02:58.3]} 6... O-O {[%clk 0:02:49.2]} 7. Be2
{[%clk 0:02:58.2]} 7... Bg4 {[%clk 0:02:49.4]} 8. O-O {[%clk 0:02:57.9]} 8...
Bxf3 {[%clk 0:02:49.8]} 9. Bxf3 {[%clk 0:02:57.5]} 9... e6 {[%clk 0:02:50.2]}
10. d4 {[%clk 0:02:57.5]} 10... Nbd7 {[%clk 0:02:49.2]} 11. Qc2 {[%clk
0:02:55.4]} 11... Re8 {[%clk 0:02:47.4]} 12. Rad1 {[%clk 0:02:53.8]} 12... a6
{[%clk 0:02:46.5]} 13. e4 {[%clk 0:02:50.7]} 13... dxe4 {[%clk 0:02:42.1]} 14.
Nxe4 {[%clk 0:02:51.6]} 14... Nxe4 {[%clk 0:02:40.9]} 15. Bxe4 {[%clk
0:02:52.5]} 15... Rc8 {[%clk 0:02:37.2]} 16. b4 {[%clk 0:02:38.4]} 16... Qe7
{[%clk 0:02:24.7]} 17. a3 {[%clk 0:02:32.8]} 17... b5 {[%clk 0:01:41.3]} 18.
Rfe1 {[%clk 0:02:25.7]} 18... Nb6 {[%clk 0:01:38.4]} 19. Bd3 {[%clk 0:02:19.7]}
19... Red8 {[%clk 0:01:30.2]} 20. d5 {[%clk 0:01:59.8]} 20... Bxb2 {[%clk
0:01:20.8]} 21. d6 {[%clk 0:01:19.5]} 21... Rxd6 {[%clk 0:01:06]} 22. c5 {[%clk
0:01:17.8]} 22... Rd7 {[%clk 0:00:49.6]} 23. cxb6 {[%clk 0:01:05.6]} 23... Bxa3
{[%clk 0:00:47]} 24. Ra1 {[%clk 0:00:54.1]} 24... Bxb4 {[%clk 0:00:44.9]} 25.
Re4 {[%clk 0:00:50.9]} 25... a5 {[%clk 0:00:43.3]} 26. Bxb5 {[%clk 0:00:49.5]}
26... Rb7 {[%clk 0:00:35]} 27. Ba6 {[%clk 0:00:46.8]} 27... Rcb8 {[%clk
0:00:28.2]} 28. Bxb7 {[%clk 0:00:44.9]} 28... Rxb7 {[%clk 0:00:29.1]} 29. Qxc6
{[%clk 0:00:43.3]} 29... Rb8 {[%clk 0:00:20.8]} 30. Rd1 {[%clk 0:00:32.4]} 30...
Qb7 {[%clk 0:00:15.6]} 31. Rc4 {[%clk 0:00:21]} 31... Qxb6 {[%clk 0:00:14.6]}
32. h3 {[%clk 0:00:13.4]} 32... h5 {[%clk 0:00:13.4]} 33. Qf3 {[%clk 0:00:11.9]}
33... Qb7 {[%clk 0:00:11.9]} 34. Qf6 {[%clk 0:00:10]} 34... Qb5 {[%clk
0:00:07.9]} 35. Rf4 {[%clk 0:00:08.4]} 35... Qb7 {[%clk 0:00:03.4]} 36. Rf3
{[%clk 0:00:06.5]} 36... Qe7 {[%clk 0:00:03.4]} 37. Qf4 {[%clk 0:00:06.3]} 37...
Rd8 {[%clk 0:00:02.4]} 38. Rc1 {[%clk 0:00:05.8]} 38... Rd7 {[%clk 0:00:02.7]}
39. Rb1 {[%clk 0:00:05.7]} 39... Rd8 {[%clk 0:00:03.1]} 40. Rg3 {[%clk
0:00:05.9]} 40... Rd7 {[%clk 0:00:03]} 41. Rf3 {[%clk 0:00:06.1]} 41... Rd8
{[%clk 0:00:03.1]} 42. Qe4 {[%clk 0:00:06.4]} 42... Qd6 {[%clk 0:00:03.1]} 43.
Qe2 {[%clk 0:00:06.3]} 43... Qd5 {[%clk 0:00:02.9]} 44. Rg3 {[%clk 0:00:06.1]}
44... Qd6 {[%clk 0:00:02.7]} 45. Rf3 {[%clk 0:00:05.7]} 45... Kg7 {[%clk
0:00:02.6]} 46. Rf1 {[%clk 0:00:05.6]} 46... Qd5 {[%clk 0:00:02.8]} 47. Rg3
{[%clk 0:00:05.7]} 47... a4 {[%clk 0:00:02.8]} 48. Kh1 {[%clk 0:00:05.9]} 48...
a3 {[%clk 0:00:03.1]} 49. Qc2 {[%clk 0:00:05]} 49... Be7 {[%clk 0:00:03]} 50.
Qb1 {[%clk 0:00:04.6]} 50... a2 {[%clk 0:00:02.9]} 51. Qb2+ {[%clk 0:00:04.2]}
51... Bf6 {[%clk 0:00:03.2]} 52. Qa3 {[%clk 0:00:03.9]} 52... Rb8 {[%clk
0:00:02.2]} 53. Rf3 {[%clk 0:00:02.6]} 53... Rb1 {[%clk 0:00:02.6]} 54. Rxf6
{[%clk 0:00:01.8]} 54... Rxf1+ {[%clk 0:00:02.5]} 55. Kh2 {[%clk 0:00:02.1]}
55... Qe5+ {[%clk 0:00:02.7]} 56. f4 {[%clk 0:00:01.1]} 56... Qxf6 {[%clk
0:00:02.7]} 57. Qxa2 {[%clk 0:00:01.3]} 57... Qxf4+ {[%clk 0:00:03]} 58. g3
{[%clk 0:00:01.5]} 58... Qf2+ {[%clk 0:00:03.4]} 0-1